Cogmind - Beta 15 @@@ ROGUE MODE // 2025.07.21 @ 17:33:55 Player: shapeshifter Result: Destroyed by Autobeam Turret with Autobeam Performance ------------- Evolutions (0) 0 Regions Visited (3) 600 Robots Destroyed (11) 55 Value Destroyed (329) 329 Prototype IDs (0) 0 Alien Tech Used (0) 0 Bonus (-23) -23 TOTAL SCORE: 961 Bonus ------- Friendly Fire -23 Cogmind --------- Core Integrity 0/250 Matter 270/300 Energy 98/100 System Corruption 1% Temperature Cool (16) Movement Flying (37) Location -10/Subcaves Parts ------- > --- POWER (1) -------- (None) > --- PROPULSION (2) --- Flight Unit Flight Unit > --- UTILITY (2) ------ Core Shielding > --- WEAPON (2) ------- Subdweller Machine Gun > --- INVENTORY (5) ---- Subdweller Monowheel Subdweller Monowheel High-capacity Matter Pod (200) Makeshift System Shield Assault Rifle Peak State ------------ > --- POWER ------------ Subdweller Power Source > --- PROPULSION ------- Subdweller Monowheel Subdweller Monowheel > --- UTILITY ---------- Disposable Heat Sink Small Storage Unit > --- WEAPON ----------- Assault Rifle Light Assault Rifle > --- INVENTORY -------- Wheel High-capacity Matter Pod Targeting Computer Core Shielding Propulsion Shielding Subdweller Machine Gun Enhanced Flamer [Rating: 12] Favorites ----------- Power Ion Engine Engine Ion Engine Propulsion Wheel Wheel Wheel Flight Unit Flight Unit Utility Small Storage Unit Device Seismic Detector Storage Small Storage Unit Protection Core Shielding Weapon Assault Rifle Ballistic Gun Assault Rifle Launcher Grenade Launcher Build | -11 -10 -10 -10 ------- Run | Yrd Mat Min Sub Slots Evolved . | . . . . Power . | . . . . Propulsion . | . . . . Utility . | . . . . Weapon . | . . . . Parts Attached 20 | 8 . . 12 Power 3 | 1 . . 2 Engine 3 | 1 . . 2 Core . | . . . . Reactor . | . . . . Propulsion 8 | 2 . . 6 Treads . | . . . . Leg . | . . . . Wheel 6 | 2 . . 4 Hover . | . . . . Flight 2 | . . . 2 Utility 4 | 2 . . 2 Device 2 | 1 . . 1 Storage 1 | 1 . . . Processor . | . . . . Hackware . | . . . . Protection 1 | . . . 1 Artifact . | . . . . Weapon 5 | 3 . . 2 Energy Gun . | . . . . Energy Cannon . | . . . . Ballistic Gun 4 | 3 . . 1 Ballistic Cannon . | . . . . Launcher 1 | . . . 1 Special Weapon . | . . . . Impact Weapon . | . . . . Slashing Weapon . | . . . . Piercing Weapon . | . . . . Special Melee Weapon . | . . . . Unidentified Prototypes . | . . . . Parts Lost 5 | . . . 5 Power 2 | . . . 2 Propulsion . | . . . . Utility 1 | . . . 1 Weapon 2 | . . . 2 Highest Loss Streak 2 | . . . 2 To Critical Strikes 1 | . . . 1 Average Backups 6 | 3 7 7 6 Power . | . 1 1 . Propulsion 2 | 1 4 1 2 Utility 3 | . . 2 3 Weapon 1 | . 1 2 . Tool/Special . | . . . . Unused Backups 10 | . 2 3 5 Power 1 | . . 1 . Propulsion 4 | . 2 2 . Utility 4 | . . . 4 Weapon 1 | . . . 1 Tool/Special . | . . . . Average Slot Usage (%) 84 | . 100 100 80 Engine 12 | . 14 14 11 Wheel 19 | . 28 28 17 Flight 7 | . . . 8 Device 5 | . 14 14 2 Storage 10 | . 14 14 9 Protection 3 | . . . 4 Ballistic Gun 23 | . 28 28 22 Launcher 1 | . . . 1 Peak Build Rating 12 | 7 7 7 12 Average Rating 7 | 4 7 7 7 On Entrance 5 | . 7 7 7 Naked Turns . | . . . . Heaviest Build 15 | 15 15 15 14 Greatest Support 40 | 20 20 20 40 Greatest Overweight (x) 3 | . . . 3 Average Overweight (x) . | . . . . Largest Inventory Capacity 8 | 8 8 8 8 Average Capacity 7 | 7 8 8 7 Most Carried 8 | 7 8 8 8 Average Carried 6 | 3 7 7 6 Final Capacity 8 | 8 8 8 5 Final Carried 8 | 6 7 8 5 Class Distribution -------------------- 100% | Mutant Dominant Class ---------------- Mutant | -10/Materials Mutant | -10/Mines Mutant | -10/Subcaves Resources | -11 -10 -10 -10 ----------- Run | Yrd Mat Min Sub Matter Collected 1018 | 205 . 329 484 Remotely . | . . . . Salvage Created 321 | 22 . 101 198 Parts 30 | 4 . 9 17 Haulers Intercepted . | . . . . Recyclers Shooed . | . . . . Parts Field Recycled . | . . . . Retrieved Matter . | . . . . Parts Self-Destructed 11 | . . . 11 Prevented . | . . . . Kills | -11 -10 -10 -10 ------- Run | Yrd Mat Min Sub Combat Hostiles Destroyed 10 | . . 2 8 Guns 7 | . . 2 5 AOE 3 | . . . 3 Classes Destroyed 5 | 1 . 2 2 Tunneler 1 | 1 . . . Swarmer 3 | . . . 3 Grunt 1 | . . 1 . Sentry 1 | . . 1 . Subdweller 5 | . . . 5 Best Kill Streak 4 | 1 . 1 4 Combat Bots Only 4 | . . 1 4 Max Kills in Single Turn 2 | 1 . 1 2 Gunslinging . | . . . . Exploded 2 | . . . 2 Melee . | . . . . Uniques/NPCs Destroyed . | . . . . Combat | -11 -10 -10 -10 -------- Run | Yrd Mat Min Sub Hostile Shots Fired 71 | . . 14 57 Missed 24 | . . 2 22 Hits 47 | . . 12 35 Projectile 47 | . . 12 35 AOE 1 | . . . 1 Critical Strikes 3 | . . 1 2 Damage Taken 710 | . . 165 545 Core 250 | . . . 250 Absorbed by Shields . | . . . . Redirected to Shielding 12 | . . . 12 Core Remaining (%) 100 | 100 . . . Volleys Fired 75 | 1 1 7 66 Largest 2 | 2 2 2 2 Hottest 50 | 40 40 40 50 Shots Fired 121 | 2 2 14 103 Gun 105 | 2 2 14 87 Cannon . | . . . . Launcher 16 | . . . 16 Special . | . . . . Kinetic 105 | 2 2 14 87 Thermal . | . . . . Explosive 16 | . . . 16 Electromagnetic . | . . . . Robot Hit Streak 16 | 1 3 11 16 Robot Miss Streak 5 | . . 2 5 Penetration Max . | . . . . Secondary Targets . | . . . . Shots Hit Robots 34 | 1 2 12 19 Core Hits 20 | 1 . 6 13 Critical Kills . | . . . . Critical Parts Destroyed . | . . . . Critical Strikes . | . . . . Melee Attacks . | . . . . Impact . | . . . . Slashing . | . . . . Piercing . | . . . . Sneak Attacks . | . . . . Combat Hostiles . | . . . . Follow-up Attacks . | . . . . Damage Inflicted 785 | 15 27 133 610 Guns 388 | 15 27 133 213 Cannons . | . . . . Explosions 397 | . . . 397 Melee . | . . . . Ramming . | . . . . Kinetic 388 | 15 27 133 213 Thermal . | . . . . Explosive 397 | . . . 397 Electromagnetic . | . . . . Impact . | . . . . Slashing . | . . . . Piercing . | . . . . Highest Corruption 1 | . 1 1 1 Average Corruption 1 | . 1 1 1 Corruption Purged . | . . . . Corruption Blocked . | . . . . Effects 16 | . . 2 14 Message Errors 4 | . . 2 2 Matter Fused 4 | . . . 4 Energy Discharges 3 | . . . 3 Data Loss (minor) 2 | . . . 2 Misfires 2 | . . . 2 Alerts 1 | . . . 1 Overload Shots . | . . . . Overflow Damage . | . . . . Projectiles . | . . . . Explosions . | . . . . Melee . | . . . . Knockbacks . | . . . . Impact . | . . . . Kinetic . | . . . . Secondary . | . . . . Self-Inflicted Damage 103 | . . . 103 Shots 5 | . . . 5 Rammed . | . . . . Targets Rammed . | . . . . Kicked . | . . . . Crushed . | . . . . Highest Temperature 2 | . . 2 . Average Temperature 1 | . . 1 . Received Heat Transfer 114 | . . 60 54 Siege Activations . | . . . . Martial Activations . | . . . . Shielding Activations . | . . . . Robots Disrupted . | . . . . Combat Hostiles . | . . . . Robots Corrupted . | . . . . Combat Hostiles . | . . . . Parts Fried . | . . . . Impact Corruptions . | . . . . Robots Melted . | . . . . Combat Hostiles . | . . . . Parts Melted . | . . . . Heat Transferred . | . . . . Parts Sabotaged . | . . . . Parts Stolen . | . . . . Parts Stripped . | . . . . Power Chain Reactions . | . . . . Alert | -11 -10 -10 -10 ------- Run | Yrd Mat Min Sub Maximum Alert Level . | . . . . Low Security (%) 100 | 100 100 100 . Level 1 . | . . . . Level 2 . | . . . . Level 3 . | . . . . Level 4 . | . . . . Level 5 . | . . . . High Security . | . . . . Max Security . | . . . . Peak Influence 35 | 5 3 35 . Initial 3 | . 3 . . Average 5 | . . 7 . Influence Increases 170 | 5 . 65 100 Destroy 0b10 Robot/C 100 | . . 40 60 Destroy 0b10 Robot/NC 5 | 5 . . . Destroy Leader 20 | . . 10 10 Lose Combat Pursuer 45 | . . 15 30 Influence Decreases 155 | . 5 65 85 Entered New Map 2 | . 2 . . Time Decay 133 | . 3 65 65 Lost Part 20 | . . . 20 Squads Dispatched 1 | . 1 . . Investigation 1 | . 1 . . Extermination . | . . . . Reinforcement . | . . . . Assault . | . . . . Garrison . | . . . . Intercept . | . . . . Searches Triggered . | . . . . Construction Impeded . | . . . . Haulers Reinforced . | . . . . Active Scanning Responses . | . . . . Cargo Convoy Interrupts . | . . . . Stealth | -11 -10 -10 -10 --------- Run | Yrd Mat Min Sub Distress Signals . | . . . . Communications Jammed . | . . . . Distress Signals . | . . . . Times Spotted 21 | . 1 4 16 Peak Tracking Total 5 | . 1 2 5 Tactical Retreats 4 | . . 1 3 Traps | -11 -10 -10 -10 ------- Run | Yrd Mat Min Sub Traps Triggered . | . . . . Indirectly . | . . . . Trap Hack Attempts . | . . . . Triggered . | . . . . Disarmed . | . . . . Reprogrammed . | . . . . Reused . | . . . . Traps Extracted . | . . . . Installed . | . . . . Triggered . | . . . . Machines | -11 -10 -10 -10 ---------- Run | Yrd Mat Min Sub Machines Disabled 1 | . . 1 . Max in Single Turn 1 | . . 1 . Machines Repaired . | . . . . Machines Dismantled . | . . . . Machines Sabotaged . | . . . . Overloaded Fab Kills . | . . . . Hacking | -11 -10 -10 -10 --------- Run | Yrd Mat Min Sub Machines Accessed 2 | . 2 . . Terminals 2 | . 2 . . Fabricators . | . . . . Repair Stations . | . . . . Recycling Units . | . . . . Scanalyzers . | . . . . Garrison Access . | . . . . Total Hacks 6 | . 6 . . Successful 2 | . 2 . . Failed 4 | . 4 . . Catastrophic 2 | . 2 . . Database Lockouts . | . . . . Manual 6 | . 6 . . Terminals 6 | . 6 . . Fabricators . | . . . . Repair Stations . | . . . . Recycling Units . | . . . . Scanalyzers . | . . . . Garrison Access . | . . . . Terminal Hacks . | . . . . Fabricator Hacks . | . . . . Repair Station Hacks . | . . . . Recycling Unit Hacks . | . . . . Scanalyzer . | . . . . Garrison Access Hacks . | . . . . Unauthorized Hacks 2 | . 2 . . Terminals 2 | . 2 . . Botnet 2 | . 2 . . Fabricators . | . . . . Repair Stations . | . . . . Recycling Units . | . . . . Scanalyzers . | . . . . Garrison Access . | . . . . Data Cores Recovered . | . . . . Used . | . . . . Hacking Detections 2 | . 2 . . Full Trace Events 2 | . 2 . . Feedback Events 1 | . 1 . . Corruption 1 | . 1 . . Feedback Blocked . | . . . . Robot Schematics Acquired . | . . . . Robots Built . | . . . . Authchips . | . . . . Time . | . . . . Total Robot Build Rating . | . . . . Part Schematics Acquired . | . . . . Parts Built . | . . . . Authchips . | . . . . Time . | . . . . Total Part Build Rating . | . . . . Parts Repaired . | . . . . Time . | . . . . Parts Recycled . | . . . . Recycled Matter . | . . . . Retrieved Matter . | . . . . Retrieved Components . | . . . . Parts Scanalyzed . | . . . . Part Schematics Acquired . | . . . . Parts Damaged . | . . . . Bothacking | -11 -10 -10 -10 ------------ Run | Yrd Mat Min Sub Used RIF Installer . | . . . . Robots Hacked . | . . . . Non-combat . | . . . . Combat . | . . . . Robot Hacks Applied . | . . . . Relay Couplers Released . | . . . . Fabnet Peak Effective % . | . . . . Robots Rewired . | . . . . Allies Hacked . | . . . . Hacks Repelled . | . . . . Allies | -11 -10 -10 -10 -------- Run | Yrd Mat Min Sub Total Allies . | . . . . Largest Group . | . . . . Highest-Rated Group . | . . . . Highest-Rated Ally . | . . . . Total Orders . | . . . . Ally Attacks . | . . . . Total Damage . | . . . . Kills . | . . . . Allies Corrupted . | . . . . Allies Melted . | . . . . Intel | -11 -10 -10 -10 ------- Run | Yrd Mat Min Sub Active Infowar (turns) 479 | 2 69 282 126 Seismic 479 | 2 69 282 126 Robot Analysis Total . | . . . . Derelict Logs Recovered 1 | . . 1 . Drone Launches . | . . . . Drone Recoveries . | . . . . Exploration | -11 -10 -10 -10 ------------- Run | Yrd Mat Min Sub Turns Passed 1777 | 59 69 282 1367 Spaces Moved 1905 | 46 78 275 1506 Core 7 | 7 . . . Treads . | . . . . Legs . | . . . . Wheels 1205 | 39 78 275 813 Hover . | . . . . Flight 693 | . . . 693 Fastest Speed 37 | 50 80 80 37 Average Speed 72 | 75 80 80 70 Slowest Speed 285 | 80 80 80 285 Overloaded Moves . | . . . . Propulsion Burnouts . | . . . . Robots Hopped . | . . . . Potential Cave-ins 2 | . . . 2 Cave-ins Triggered . | . . . . Exploration Rate (%) 37 | 3 22 77 49 Regions Visited 3 Branch Regions 2 Pre-discovered Areas 1 | . . . 1 Known Exits Taken . | . . . . Unknown Exits Taken 3 | 1 1 1 . Scrap Searched 4 | . . . 4 Spaces Dug 17 | . . . 17 Terrain Destroyed 98 | . . . 98 Melee . | . . . . Projectile . | . . . . AOE 98 | . . . 98 Terrain Rammed . | . . . . Walls Destroyed . | . . . . Machines Disabled . | . . . . Actions | -11 -10 -10 -10 --------- Run | Yrd Mat Min Sub Total 2196 | 67 83 324 1722 Wait 148 | . . 36 112 Move 1902 | 45 77 274 1506 Hop . | . . . . Pick Up 29 | 13 3 4 9 Fast Attach 3 | . . . 3 Attach 11 | 7 . . 4 Detach 1 | . . . 1 Swap 8 | 1 . . 7 Drop 19 | . 2 3 14 Fire 75 | 1 1 7 66 Melee . | . . . . Ram . | . . . . Kick . | . . . . Crush . | . . . . Escape Stasis . | . . . . Rewire . | . . . . Trap . | . . . . Miscellaneous . | . . . . Route ------- -11/Scrapyard -10/Materials -10/Mines (discovered 2 exits: [*Mat] / [*Sub]) -10/Subcaves (discovered 2 exits: [*Mat] / [*Rec]) History --------- Turn | Location | Event 17 | -11/Scrapyard | Discovered new exit (range 14) 60 | -11/Scrapyard | Entered Materials 125 | -10/Materials | Discovered new exit (range 6) 129 | -10/Materials | Entered Mines 165 | -10/Mines | Learned Materials security intel 205 | -10/Mines | Joined a pair of Derelicts in attacking an 0b10 outpost 306 | -10/Mines | Build established: Mutant 357 | -10/Mines | Discovered new exit (range 14) 404 | -10/Mines | Discovered new exit (range 4) 411 | -10/Mines | Entered Subcaves 412 | -10/Subcaves | Shifting Twisted Machinery released Sub. Laser 412 | -10/Subcaves | Approached by a straggling Scientist 467 | -10/Subcaves | Discovered new exit (range 9) 540 | -10/Subcaves | Ambushed by Subdweller buried in earth 608 | -10/Subcaves | Core integrity fell below 50% 794 | -10/Subcaves | Learned location of Zion (-7) 794 | -10/Subcaves | Met a Zionite searching for "candidates" 977 | -10/Subcaves | Shifting Twisted Machinery released Sub. Monowheel 978 | -10/Subcaves | Shifting Twisted Machinery released Sub. Machine Gun 1090 | -10/Subcaves | A swath of the cavern ceiling suddenly collapsed 1706 | -10/Subcaves | Core integrity fell below 20% 1775 | -10/Subcaves | Discovered new exit (range 11) 1778 | -10/Subcaves | Destroyed by Autobeam Turret with Autobeam Last Messages --------------- 01333_ Dropped Enh. Flamer. 01333_ Dropped Propulsion Shielding. 01335_ Acquired Flight Unit. 01336_ Subatomizers dissect the Sub. Beam Cannon. 01346_ Acquired Flight Unit. 01349_ Dropped Disposable Heat Sink. 01349_ Dropped Targeting Computer. 01350_ Dropped Sml. Storage Unit. 01350_ Dropped Lgt. Assault Rifle. 01373_ DJ-S09(u) deconstructs Twisted Machinery. 01548_ System corrupted: Component data lost. 01582_ Dropped Sub. Power Source. 01689_ System corrupted: Matter fused (-7). 01716_ System corrupted: Energy discharge (-29). 01726_ Acquired 32 matter. 01727_ Acquired 30 matter. 01775_ EXIT=FOUND 01776_ Acquired 49 matter. Map ----- +----------------------------------------------------+ | # #?# ### ## #???????????????????????????? | | # #?###??# ##??????????????????????????? | | # #??????### ####???????????????????????? | | ##???##### #???????????????????????? | | # #?### ##???????????????????????? | | # #### ######????????????????????????? | | ## #?????????????????????????????? | | ########??????????????????????? | | #??????????????????????? | | # ## #??????????????????????? | | ## ## ##### "" ##??????????????????????? | | ### ## #???# "" ##???????????????????????? | | ## #???# "" #????????????????????????? | | ### ??# "" ##???????????????????????? | | #?## ?# "" ##??????????????????????? | | ##??## ## "" ##?????????????????????? | | #????# "" =% #?????????????????????? | | ##????# "" " * #?????????????????????? | | ##?????## "" ##"&&#?????????????????????? | | ###########"""" """"### s#?????????????????????? | | # # # ## "" """"####% s####??????????????????? | | " ""##" ""#" "#??????????????????? | | """"### "?# #??????????????????? | | ### #### """##?????# s #??????????????????? | | #?###??## "###??????#" t t "#??????????????????? | | ????????# #????????#" "@" "#??????????????????? | | ????????# "#????????#"""" """"#??????????????????? | | ????????##"#????????#####<#####??????????????????? | | ??????????##????????????###??????????????????????? | | ?????????????????????????????????????????????????? | | #????????????????????????????????????????????????? | | ##???????????????????????????????????????????????? | | #????????????????????????????????????##?????????? | | #?????????????????????????????????### ##????????? | | ##????????????????????????????????? #????????? | | #??????????????????????????????##?? #????????? | | ??????????????????????????????## ?? #?????????? | | ??????????????????????????????# ?# #??????????? | | #?????????????????????????????# ## #???????????? | | #?????????????????????????????# #???????????? | | #??????????????????????????????# #???????????? | | #??????????????????????????????# #???????????? | | #??????????????????????????????## ##???????????? | | ##??????????????????????????????# #????????????? | | #?????????????????????????????## #????????????? | | #?????????????????????????????# ########?????? | | #????????????????????????###### # ##% ##????? | | ##???????????????????###### # ###??? | | ?????????????????????# % #### | | ?????????????????????# # # #### | +----------------------------------------------------+ Best States ------------- Heat Dissipation 25 Coolant Potential 50 Energy Generation 15 Energy Capacity 250 Matter Stores 300 Matter Capacity 300 Sight Range 16 Terrain Scan Density 10 Core Shielding 20 Evasion (%) 62 Item Schematics ----------------- None Robot Schematics ------------------ None Fabricated ------------ Nothing Repaired ---------- Nothing Alien Tech Used ----------------- None Achievements -------------- None Challenges ------------ None Game ------ Seed TransmissionFlightBasin Manual? 0 Play Time 00:19:59 Cumulative 29.2 hours Start 2025.07.21 @ 17:19:49 End 2025.07.21 @ 17:33:55 Sessions 1 Manual Loads 0 Difficulty Rogue Special Mode None Game No. 78 Rogue 78 Adventurer 0 Explorer 0 Win Type - Total 0 Types 0/0/0/0/0/0/0/0/0/0 Lore% 25 Gallery% 30 Achievement% 24 Wizard Run 0 Options --------- Layout 1 ASCII 0 Keyboard 0 Movement Mouse Keybinds 0 Fullscreen 1 Font 24/Smallcaps Map View 50x35 Zoom Use 0% Tactical HUD 1 Map Filters NONE Filters NONE Steam 1 RUN: 37049a85-36ed-4010-ab2e-f6c0a1300b27